bitfinex-derivatives/quotes_BTCF0:USTF0_20250117
["timestamp","ask_amount","ask_price","bid_price","bid_amount"]
[1737089369237,0.35035321,101300.0,101290.0,0.06963348]
[1737089376933,0.35035321,101300.0,101290.0,0.24706412]
[1737089380442,0.14302531,101300.0,101290.0,0.21226412]
[1737089380835,0.18052531,101300.0,101290.0,0.21226412]
[1737089382742,0.0848117,101300.0,101290.0,0.21226412]
[1737089383441,0.1341817,101300.0,101290.0,0.21226412]
[1737089383644,0.1341817,101300.0,101290.0,0.03483348]
[1737089383834,0.0848117,101300.0,101280.0,0.65761064]
[1737089384039,0.14303031,101290.0,101280.0,0.65761064]
[1737089384549,0.049375,101290.0,101280.0,0.65761064]
[1737089385050,0.049375,101290.0,101280.0,0.68858695]
[1737089385350,0.11083716,101290.0,101280.0,0.68858695]
[1737089386543,0.11083716,101290.0,101280.0,0.63920695]
[1737089388248,0.11083716,101290.0,101280.0,0.70066911]
[1737089389543,0.11083716,101290.0,101280.0,0.63920695]
[1737089392253,0.049375,101290.0,101280.0,0.75937591]
[1737089392452,0.049371,101300.0,101280.0,0.88920248]
[1737089392748,0.91575263,101310.0,101290.0,0.50713716]
[1737089392948,0.91575263,101310.0,101300.0,0.036]
[1737089393754,0.91575263,101310.0,101300.0,0.21359462]
[1737089393755,0.47163016,101310.0,101300.0,0.21359462]
[1737089395365,0.50380426,101310.0,101300.0,0.21359462]
[1737089395863,0.50380426,101310.0,101300.0,0.036]
[1737089395864,0.71113216,101310.0,101300.0,0.036]
[1737089396766,0.71113216,101310.0,101300.0,0.06675963]
[1737089397367,0.71113216,101310.0,101290.0,0.85716668]
[1737089398769,0.2566959,101310.0,101290.0,1.00017594]
[1737089398965,0.2073279,101310.0,101300.0,0.45443626]
[1737089399163,0.2073279,101310.0,101300.0,0.53860626]
[1737089399366,0.44412247,101310.0,101300.0,0.53860626]
[1737089400455,0.6174899,101320.0,101300.0,0.57310626]
[1737089400658,0.2566899,101320.0,101310.0,0.3608]
[1737089400859,0.2566899,101320.0,101310.0,0.446966]
[1737089401069,0.2566899,101320.0,101310.0,0.086166]
[1737089401868,0.049362,101320.0,101310.0,0.086166]
[1737089402765,0.049362,101320.0,101310.0,0.17980226]
[1737089404875,0.049362,101320.0,101310.0,0.086166]
[1737089405264,0.049362,101320.0,101310.0,0.049366]
[1737089405461,0.049362,101320.0,101310.0,0.0803348]
[1737089406277,0.049362,101320.0,101310.0,0.049366]
[1737089408070,0.049362,101320.0,101310.0,0.14300226]
[1737089412282,0.12783626,101330.0,101310.0,0.50380226]
[1737089412479,0.12783626,101330.0,101320.0,0.45443626]
[1737089412480,0.083558,101330.0,101320.0,0.45443626]
[1737089412783,0.14299026,101340.0,101320.0,0.50379626]
[1737089412982,0.14299026,101340.0,101330.0,0.3608]
[1737089414176,0.049354,101340.0,101330.0,0.3608]
[1737089414480,0.14299026,101340.0,101330.0,0.3608]
[1737089415283,0.14299026,101340.0,101330.0,0.410156]
[1737089415485,0.11075846,101340.0,101330.0,0.410156]
[1737089416076,0.11075846,101340.0,101330.0,0.34115599]
[1737089417286,0.17216292,101340.0,101330.0,0.29179999]
[1737089417481,0.11075846,101340.0,101320.0,0.607101]
[1737089417781,0.11076046,101330.0,101320.0,0.607101]
[1737089418285,0.11076046,101330.0,101320.0,0.570401]
[1737089418990,0.049356,101330.0,101320.0,0.570401]
[1737089422390,0.11076046,101330.0,101320.0,0.570401]
[1737089426780,0.06140446,101330.0,101320.0,0.570401]
[1737089427488,0.11075746,101340.0,101320.0,0.570401]
[1737089428990,0.06140446,101330.0,101320.0,0.570401]
[1737089429292,0.11075746,101340.0,101320.0,0.74799562]
[1737089430992,0.2073279,101360.0,101330.0,0.48360892]
[1737089431205,0.2073279,101360.0,101350.0,0.42220446]
[1737089431488,0.26873236,101360.0,101350.0,0.3608]
[1737089431693,0.26873236,101360.0,101350.0,0.410146]
[1737089432685,0.06140446,101360.0,101350.0,0.410146]
[1737089432880,0.06140446,101360.0,101340.0,0.62564462]
[1737089432881,0.17215192,101360.0,101340.0,0.62564462]
[1737089433085,0.06140446,101350.0,101340.0,0.68704908]
[1737089433295,0.11074746,101360.0,101340.0,0.68704908]
[1737089433497,0.11074746,101360.0,101340.0,0.50945446]
[1737089433700,0.06140446,101360.0,101350.0,0.410146]
[1737089433990,0.121138,101370.0,101350.0,0.42220446]
[1737089434186,0.14594246,101370.0,101360.0,0.444841]
[1737089436792,0.6174609,101380.0,101370.0,0.049336]
[1737089436989,0.77616982,101380.0,101370.0,0.049336]
[1737089437194,0.77616982,101380.0,101360.0,0.44484]
[1737089437486,0.06140446,101370.0,101360.0,0.44484]
[1737089439695,0.06140446,101370.0,101360.0,0.50624446]
[1737089439889,0.06140446,101370.0,101360.0,0.44484]
[1737089440599,0.06140446,101370.0,101360.0,0.49336037]
[1737089441698,0.446033,101380.0,101360.0,0.49336037]
[1737089442000,0.06140446,101370.0,101360.0,0.49336037]
[1737089444796,0.06140446,101370.0,101360.0,0.08322037]
[1737089445104,0.14594046,101370.0,101360.0,0.08322037]
[1737089445291,0.06140446,101370.0,101360.0,0.44402037]
[1737089445486,0.11074046,101370.0,101360.0,0.44402037]
[1737089446196,0.11074046,101370.0,101360.0,0.37502036]
[1737089447100,0.14564046,101370.0,101360.0,0.37502036]
[1737089449901,0.049336,101370.0,101360.0,0.48576582]
[1737089450500,0.36740136,101380.0,101360.0,0.48576582]
[1737089450704,0.31806636,101380.0,101370.0,0.3608]
[1737089451099,0.31806636,101380.0,101370.0,0.29179999]
[1737089451100,0.11073846,101380.0,101370.0,0.29179999]
[1737089451603,0.11073846,101380.0,101370.0,0.3608]
[1737089452189,0.17214292,101380.0,101370.0,0.3608]
[1737089453303,0.17214292,101380.0,101370.0,0.410136]
[1737089453697,0.17214292,101380.0,101370.0,0.446036]
[1737089453898,0.11073846,101380.0,101370.0,0.446036]
[1737089454199,0.049334,101380.0,101370.0,0.446036]
[1737089454403,0.11073846,101380.0,101370.0,0.446036]
[1737089456798,0.049334,101380.0,101370.0,0.446036]
[1737089457000,0.11073846,101380.0,101370.0,0.446036]
[1737089457200,0.11073846,101380.0,101370.0,0.37703599]
[1737089460003,0.55486093,101380.0,101370.0,0.37703599]
[1737089461205,0.55486093,101380.0,101370.0,0.30803598]
[1737089465501,0.55486093,101380.0,101370.0,0.446036]
[1737089465708,0.34753303,101380.0,101370.0,0.446036]
[1737089466108,0.34753303,101380.0,101370.0,0.37703599]
[1737089466793,0.34753303,101380.0,101370.0,0.42637199]
[1737089467498,0.55470596,101380.0,101370.0,0.42637199]
[1737089469100,0.55470596,101380.0,101370.0,0.37703599]
[1737089469810,0.34753303,101380.0,101370.0,0.3608]
[1737089470107,0.34753303,101380.0,101360.0,0.60195498]
[1737089470108,0.049336,101370.0,101360.0,0.60195498]
[1737089470409,0.11074046,101370.0,101360.0,0.60195498]
[1737089471005,0.11074046,101370.0,101360.0,0.55261498]
[1737089471318,0.11074046,101370.0,101360.0,0.17759462]
[1737089471511,0.11074046,101370.0,101360.0,0.53839462]
[1737089472103,0.11074046,101370.0,101360.0,0.59979908]
[1737089472506,0.52192382,101390.0,101360.0,0.59979908]
[1737089472712,0.06140446,101370.0,101360.0,0.68219344]
[1737089473213,0.049336,101370.0,101360.0,0.68219344]
[1737089474013,0.049336,101370.0,101360.0,0.79287606]
[1737089474214,0.049336,101370.0,101360.0,0.61534428]
[1737089474610,0.049336,101370.0,101360.0,0.55393982]
[1737089474810,0.049336,101370.0,101360.0,0.61534428]
[1737089475512,0.049336,101370.0,101360.0,0.55393982]
[1737089475907,0.049336,101370.0,101360.0,0.61534428]
[1737089476208,0.049336,101370.0,101360.0,0.54634427]
[1737089476414,0.049333,101380.0,101360.0,0.54634427]
[1737089476617,0.049333,101380.0,101370.0,0.49510446]
[1737089477420,0.049333,101380.0,101370.0,0.54444046]
[1737089481119,0.049333,101380.0,101370.0,0.47544045]
[1737089483323,0.049328,101390.0,101370.0,0.71157789]
[1737089483526,0.049328,101390.0,101380.0,0.46020446]
[1737089484424,0.049328,101390.0,101380.0,0.49670446]
[1737089486123,0.049328,101390.0,101380.0,0.42770445]
[1737089488026,0.049328,101390.0,101380.0,0.48910891]
[1737089488230,0.049328,101390.0,101380.0,0.53843991]
[1737089488434,0.049328,101390.0,101380.0,0.47703545]
[1737089489239,0.049328,101390.0,101380.0,0.52696508]
[1737089489432,0.049328,101390.0,101380.0,0.56296508]
[1737089490432,0.21072846,101400.0,101380.0,0.62436954]
[1737089490639,0.21072846,101400.0,101390.0,0.45760446]
[1737089490839,0.21072846,101400.0,101390.0,0.3962]
[1737089491340,0.049327,101390.0,101380.0,0.56296508]
[1737089491530,0.11073146,101390.0,101380.0,0.56296508]
[1737089492342,0.049327,101390.0,101380.0,0.56296508]
[1737089496139,0.049327,101390.0,101380.0,0.49396507]
[1737089497844,0.049327,101390.0,101380.0,0.59396509]
[1737089498548,0.149324,101400.0,101380.0,0.65536955]
[1737089498736,0.149324,101400.0,101390.0,0.06140446]
[1737089500847,0.149324,101400.0,101390.0,0.11073046]
[1737089501050,0.149324,101400.0,101390.0,0.47153046]
[1737089501242,0.149324,101400.0,101390.0,0.40253045]
[1737089501443,0.66740847,101420.0,101390.0,0.46393491]
[1737089501643,0.11072146,101410.0,101400.0,0.3608]
[1737089504543,0.14512146,101410.0,101400.0,0.3608]
[1737089506244,0.14512146,101410.0,101400.0,0.29179999]
[1737089508042,0.083717,101410.0,101400.0,0.29179999]
[1737089508239,0.14512146,101410.0,101400.0,0.29179999]
[1737089510250,0.083717,101410.0,101400.0,0.29179999]
[1737089510554,0.14512146,101410.0,101400.0,0.34053768]
[1737089511150,0.049317,101410.0,101400.0,0.33294213]
[1737089511459,0.049317,101410.0,101400.0,0.40524213]
[1737089512056,0.55165665,101410.0,101400.0,0.40524213]
[1737089512251,0.50233965,101410.0,101400.0,0.51596759]
[1737089512853,0.30866181,101410.0,101400.0,0.51596759]
[1737089513166,0.30866181,101410.0,101400.0,0.57737205]
[1737089513347,0.70511636,101440.0,101410.0,0.049317]
[1737089513553,0.70511636,101440.0,101430.0,0.3608]
[1737089513554,0.76652082,101440.0,101430.0,0.3608]
[1737089513851,0.47126007,101440.0,101430.0,0.42220446]
[1737089514152,0.53266453,101440.0,101430.0,0.3608]
[1737089514858,0.20791192,101440.0,101430.0,0.3608]
[1737089515245,0.14650746,101440.0,101430.0,0.3608]
[1737089515448,0.17850272,101440.0,101430.0,0.3608]
[1737089516755,0.14270272,101440.0,101430.0,0.3608]
[1737089517256,0.14270272,101440.0,101420.0,0.44616178]
[1737089517456,0.14270672,101430.0,101420.0,0.44616178]
[1737089519357,0.049307,101430.0,101420.0,0.44616178]
[1737089520157,0.049307,101430.0,101420.0,0.5395615]
[1737089520353,0.049307,101430.0,101420.0,0.44616178]
[1737089520560,0.14270672,101430.0,101420.0,0.44616178]
[1737089521058,0.21710672,101430.0,101420.0,0.44616178]
[1737089521261,0.21710672,101430.0,101420.0,0.37716177]
[1737089521649,0.25410672,101430.0,101420.0,0.37716177]
[1737089522359,0.25410672,101430.0,101420.0,0.01636177]
[1737089522560,0.049312,101420.0,101410.0,0.4346]
[1737089523150,0.049312,101420.0,101410.0,0.52799972]
[1737089523462,0.049312,101420.0,101410.0,0.57658033]
[1737089524162,0.049303,101440.0,101410.0,0.62589633]
[1737089524363,0.049303,101440.0,101430.0,0.3608]
[1737089524555,0.14270272,101440.0,101430.0,0.3608]
[1737089526256,0.049303,101440.0,101430.0,0.29179999]
[1737089527063,0.14270272,101440.0,101430.0,0.29179999]
[1737089531258,0.049307,101430.0,101420.0,0.410112]
[1737089531461,0.049307,101430.0,101420.0,0.45839328]
[1737089532361,0.14270672,101430.0,101420.0,0.40908128]
[1737089532965,0.14270672,101430.0,101420.0,0.04828128]
[1737089533170,0.09339972,101430.0,101410.0,0.483516]
[1737089533463,0.049311,101420.0,101410.0,0.483516]
[1737089534065,0.049311,101420.0,101410.0,0.4342]
[1737089534766,0.049311,101420.0,101410.0,0.52759972]
[1737089535087,0.049311,101420.0,101410.0,0.57691572]
[1737089535661,0.049311,101420.0,101410.0,0.52759972]
[1737089535859,0.049311,101420.0,101410.0,0.57762316]
[1737089537266,0.049311,101420.0,101410.0,0.62693916]
[1737089541270,0.049311,101420.0,101410.0,0.53353944]
[1737089541866,0.049311,101420.0,101410.0,0.76967688]
[1737089542261,0.049311,101420.0,101410.0,0.8630766]
[1737089542471,0.049311,101420.0,101410.0,1.60997429]
[1737089543269,0.049311,101420.0,101410.0,1.37383685]
[1737089544472,0.049308,101430.0,101410.0,1.37383685]
[1737089544777,0.049308,101430.0,101420.0,0.3608]
[1737089545277,0.049308,101430.0,101420.0,0.59636137]
[1737089546175,0.049308,101430.0,101420.0,0.23556137]
[1737089549380,0.11060194,101430.0,101420.0,0.59636137]
[1737089549776,0.11060194,101430.0,101420.0,0.3608]
[1737089550682,0.049308,101430.0,101420.0,0.42209394]
[1737089550882,0.049308,101430.0,101420.0,0.3608]
[1737089551072,0.049308,101430.0,101410.0,0.83039475]
[1737089551269,0.049308,101430.0,101410.0,0.87970775]
[1737089551476,0.049308,101430.0,101420.0,0.06129394]
[1737089553882,0.049308,101430.0,101420.0,0.42209394]
[1737089554083,0.049308,101430.0,101420.0,0.46149394]
[1737089554284,0.049308,101430.0,101420.0,0.51080494]
[1737089555489,0.049308,101430.0,101420.0,0.15000494]
[1737089556084,0.049308,101430.0,101420.0,0.38556631]
[1737089558093,0.049308,101430.0,101420.0,0.74636631]
[1737089558388,0.3608,101440.0,101420.0,0.69705531]
[1737089558684,0.3608,101440.0,101430.0,0.11060094]
[1737089558878,0.3608,101440.0,101430.0,0.19010094]
[1737089559081,0.57999294,101450.0,101440.0,0.049302]
[1737089559284,0.447499,101450.0,101440.0,0.11059594]
[1737089559690,0.410099,101450.0,101440.0,0.11059594]
[1737089560080,0.410093,101460.0,101450.0,0.049297]
[1737089560485,0.47138694,101460.0,101450.0,0.049297]
[1737089561086,0.47138694,101460.0,101440.0,0.43889093]
[1737089561288,0.47138694,101460.0,101450.0,0.049297]
[1737089561488,0.50344791,101460.0,101450.0,0.049297]
[1737089561888,0.410093,101460.0,101450.0,0.049297]
[1737089562689,0.410093,101460.0,101450.0,0.14265191]
[1737089564098,0.410093,101460.0,101450.0,0.049297]
[1737089564394,0.049297,101450.0,101440.0,0.69461174]
[1737089564587,0.088597,101450.0,101440.0,0.78796665]
[1737089564790,0.088597,101450.0,101440.0,0.55240528]
[1737089564995,0.127897,101450.0,101440.0,0.55240528]
[1737089568996,0.447588,101470.0,101450.0,0.049297]
[1737089569201,0.447588,101470.0,101460.0,0.18670982]
[1737089569202,0.165088,101470.0,101460.0,0.18670982]
[1737089569396,0.088088,101470.0,101460.0,0.14264691]
[1737089570014,0.049288,101470.0,101460.0,0.14264691]
[1737089571504,0.049288,101470.0,101460.0,0.63650182]
[1737089571709,0.049283,101480.0,101460.0,0.63650182]
[1737089571912,0.049283,101480.0,101470.0,0.09335491]
[1737089572311,0.049283,101480.0,101470.0,0.50344191]
[1737089572510,0.049283,101480.0,101470.0,0.22334191]
[1737089574815,0.049283,101480.0,101470.0,0.58414191]
[1737089577915,0.049279,101490.0,101470.0,0.58414191]
[1737089578309,0.049279,101490.0,101480.0,0.09335491]
[1737089578513,0.049279,101490.0,101480.0,0.14263691]
[1737089578708,0.590174,101500.0,101480.0,0.50343691]
[1737089579009,0.590174,101500.0,101480.0,0.54303691]
[1737089579611,0.510074,101500.0,101490.0,0.09335491]
[1737089579817,0.510074,101500.0,101490.0,0.13405491]
[1737089580219,0.510074,101500.0,101490.0,0.0407]
[1737089580418,0.510074,101500.0,101490.0,0.18333191]
[1737089581215,0.1,101500.0,101490.0,0.50343191]
[1737089581416,0.1,101500.0,101490.0,0.54423191]
[1737089583019,0.24262691,101500.0,101480.0,0.449681]
[1737089583219,0.14263191,101490.0,101480.0,0.3608]
[1737089583422,0.09335491,101490.0,101470.0,0.59636137]
[1737089583617,0.14263391,101490.0,101470.0,0.73900228]
[1737089583819,0.049282,101480.0,101470.0,0.73900228]
[1737089584017,0.049282,101480.0,101470.0,0.64564737]
[1737089584223,0.049282,101480.0,101470.0,0.73900228]
[1737089584518,0.049282,101480.0,101470.0,0.50344091]
[1737089584727,0.049282,101480.0,101470.0,0.3608]
[1737089585122,0.049282,101480.0,101470.0,0.40887028]
[1737089585814,0.049282,101480.0,101470.0,0.55151219]
[1737089586013,0.14263691,101480.0,101470.0,0.04807028]
[1737089586215,0.089982,101480.0,101460.0,0.50344591]
[1737089586426,0.45415491,101490.0,101470.0,0.50343991]
[1737089586427,0.049278,101490.0,101470.0,0.50343991]
[1737089586613,0.049282,101480.0,101470.0,0.45415491]
[1737089586816,0.049282,101480.0,101460.0,0.55294005]
[1737089587015,0.132582,101480.0,101460.0,0.55294005]
[1737089587228,0.22593691,101480.0,101460.0,0.45958514]
[1737089587720,0.049287,101470.0,101460.0,0.45958514]
[1737089588427,0.049287,101470.0,101460.0,0.55294005]
[1737089589927,0.049287,101470.0,101460.0,0.45958514]
[1737089590122,0.14264191,101470.0,101460.0,0.41029514]
[1737089590826,0.049287,101470.0,101460.0,0.41029514]
[1737089591028,0.049287,101470.0,101460.0,0.04949514]
[1737089591326,0.049287,101470.0,101450.0,0.86621028]
[1737089591920,0.049287,101470.0,101450.0,0.63064891]
[1737089592522,0.14264191,101470.0,101450.0,0.537294]
[1737089592826,0.049292,101460.0,101450.0,0.494294]
[1737089593027,0.049292,101460.0,101450.0,0.451894]
[1737089593717,0.049292,101460.0,101450.0,0.410094]
[1737089593913,0.049292,101460.0,101450.0,0.64565537]
[1737089594116,0.3608,101470.0,101450.0,0.23556137]
[1737089594318,0.091792,101460.0,101450.0,0.23556137]
[1737089594523,0.410088,101470.0,101450.0,0.42784334]
[1737089594723,0.410088,101470.0,101450.0,0.78864334]
[1737089595021,0.14264691,101460.0,101450.0,0.64599243]
[1737089595227,0.049292,101460.0,101450.0,0.64599243]
[1737089595429,0.049292,101460.0,101450.0,0.58612256]
[1737089595721,0.50344291,101470.0,101450.0,0.63541856]
[1737089595922,0.50344291,101470.0,101450.0,0.67947747]
[1737089595923,0.410088,101470.0,101450.0,0.67947747]
[1737089596127,0.049277,101490.0,101460.0,0.45415491]
[1737089596323,0.091777,101490.0,101470.0,0.50343791]
[1737089596521,0.091777,101490.0,101480.0,0.3608]
[1737089596722,0.18513191,101490.0,101470.0,0.410083]
[1737089597624,0.18513191,101490.0,101480.0,0.1756915]
[1737089597824,0.091777,101490.0,101480.0,0.1756915]
[1737089598727,0.091777,101490.0,101480.0,0.5857705]
[1737089599530,0.091777,101490.0,101480.0,0.82133187]
[1737089601925,0.63635491,101500.0,101480.0,0.82133187]
[1737089601926,0.592271,101500.0,101480.0,0.50343391]
[1737089602126,0.1822,101500.0,101490.0,0.45415491]
[1737089602328,0.1,101500.0,101490.0,0.50342891]
[1737089602529,0.1,101500.0,101490.0,0.410074]
[1737089603523,0.1,101500.0,101490.0,0.5857655]
[1737089604930,0.1,101500.0,101490.0,0.67912041]
[1737089605125,0.1,101500.0,101490.0,0.5857655]
[1737089605434,0.1,101500.0,101490.0,0.410074]
[1737089606226,0.1,101500.0,101490.0,0.34207399]
[1737089607733,0.1,101500.0,101490.0,0.4354289]
[1737089608524,0.1,101500.0,101490.0,0.65266151]
[1737089609434,0.1,101500.0,101490.0,0.35986152]
[1737089609735,0.1,101500.0,101490.0,0.72066152]
[1737089611234,0.1,101500.0,101490.0,0.62730661]
[1737089611833,0.14927,101500.0,101490.0,0.62730661]
[1737089612134,0.14927,101500.0,101490.0,0.26650661]
[1737089613229,0.14927,101500.0,101490.0,0.09081511]
[1737089613425,0.24262491,101500.0,101490.0,0.04154111]
[1737089613625,0.24262491,101500.0,101480.0,1.43203087]
[1737089613626,0.19335491,101500.0,101480.0,1.43203087]
[1737089613825,0.049275,101490.0,101480.0,1.35133087]
[1737089614034,0.134875,101490.0,101480.0,1.35133087]
[1737089614434,0.58902991,101490.0,101480.0,0.7056915]
[1737089614731,0.27272991,101490.0,101480.0,0.7056915]
[1737089614928,0.179375,101490.0,101480.0,0.7056915]
[1737089615534,0.179375,101490.0,101480.0,0.53]
[1737089616136,0.179375,101490.0,101470.0,0.67912941]
[1737089616137,0.228654,101490.0,101470.0,0.67912941]
[1737089616831,0.049279,101480.0,101470.0,0.71448981]
[1737089617537,0.049279,101480.0,101470.0,0.53879831]
[1737089618333,0.049279,101480.0,101470.0,0.3961604]
[1737089618533,0.14263391,101480.0,101470.0,0.0353604]
[1737089618730,0.09335491,101480.0,101460.0,0.77205287]
[1737089618933,0.049284,101470.0,101460.0,0.77205287]
[1737089619630,0.049284,101470.0,101460.0,0.5364915]
[1737089621136,0.049284,101470.0,101460.0,0.57178719]
[1737089622735,0.093484,101470.0,101460.0,0.57178719]
[1737089623232,0.093484,101470.0,101460.0,0.39609569]
[1737089625941,0.04928,101480.0,101460.0,0.5387396]
[1737089626134,0.04928,101480.0,101460.0,0.5820396]
[1737089627039,0.14263491,101480.0,101460.0,0.5820396]
[1737089627440,0.14263491,101480.0,101460.0,0.7577311]
[1737089630238,0.14263491,101480.0,101460.0,0.5820396]
[1737089631240,0.14263491,101480.0,101460.0,0.48868469]
[1737089632038,0.14263491,101480.0,101460.0,0.66437619]
[1737089636846,0.14263491,101480.0,101460.0,0.89993756]
[1737089637344,0.09335491,101470.0,101460.0,0.80734856]
[1737089637647,0.14263891,101470.0,101460.0,0.80734856]
[1737089638343,0.049284,101470.0,101460.0,0.80734856]
[1737089638943,0.049284,101470.0,101460.0,0.39609569]
[1737089639344,0.14263891,101470.0,101460.0,0.39609569]
[1737089639748,0.14263891,101470.0,101460.0,0.57178719]
[1737089640444,0.049284,101470.0,101460.0,0.57178719]
[1737089641147,0.049284,101470.0,101460.0,0.62107619]
[1737089641352,0.049284,101470.0,101460.0,0.8091311]
[1737089642355,0.049284,101470.0,101460.0,0.71577619]
[1737089643947,0.049284,101470.0,101460.0,0.95133756]
[1737089644147,0.04928,101480.0,101460.0,1.04469247]
[1737089644353,0.04928,101480.0,101470.0,0.0473]
[1737089644955,0.04928,101480.0,101470.0,0.55073891]
[1737089645451,0.049275,101490.0,101470.0,0.60001891]
[1737089645652,0.049275,101490.0,101470.0,0.55073491]
[1737089646254,0.14262991,101490.0,101470.0,0.86863287]
[1737089647251,0.14262991,101490.0,101480.0,0.41125287]
[1737089647556,0.049275,101490.0,101480.0,0.41125287]
[1737089648347,0.14262991,101490.0,101480.0,0.41125287]
[1737089649350,0.14262991,101490.0,101480.0,0.1756915]
[1737089649551,0.14262991,101490.0,101480.0,0.2249705]
[1737089651257,0.049275,101490.0,101480.0,0.15597049]
[1737089651659,0.049275,101490.0,101480.0,0.19045509]
[1737089653351,0.049275,101490.0,101480.0,0.0837636]
[1737089656259,0.049275,101490.0,101470.0,0.55073491]
[1737089656454,0.098553,101490.0,101480.0,0.049279]
[1737089656661,0.049279,101480.0,101470.0,0.457383]
[1737089658364,0.049279,101480.0,101470.0,0.49205684]
[1737089659063,0.14263391,101480.0,101470.0,0.39547384]
[1737089659364,0.18743391,101480.0,101470.0,0.03467384]
[1737089659561,0.18743391,101480.0,101460.0,0.83230428]
[1737089659562,0.049284,101470.0,101460.0,0.83230428]
[1737089661062,0.049284,101470.0,101460.0,0.86658177]
[1737089661262,0.049284,101470.0,101460.0,0.91058177]
[1737089662658,0.049284,101470.0,101460.0,1.42167279]
[1737089664054,0.049284,101470.0,101460.0,1.32831788]
[1737089665470,0.09408,101480.0,101460.0,1.47095779]
[1737089665671,0.09408,101480.0,101460.0,1.42166979]
[1737089666671,0.09408,101480.0,101470.0,0.23476003]
[1737089671159,0.09408,101480.0,101470.0,0.28404403]
[1737089671470,0.15531323,101480.0,101470.0,0.28404403]
[1737089674877,0.09408,101480.0,101470.0,0.28404403]
[1737089676875,0.09408,101480.0,101470.0,0.049284]
[1737089683675,0.09408,101480.0,101470.0,0.28404403]
[1737089684781,0.15531323,101480.0,101470.0,0.23476003]
[1737089690481,0.04928,101480.0,101470.0,0.64484403]
[1737089690983,0.11051323,101480.0,101470.0,0.23476003]
[1737089691183,0.17174646,101480.0,101470.0,0.74663076]
[1737089691385,0.58034646,101480.0,101470.0,0.74663076]
[1737089692481,0.049283,101470.0,101460.0,0.72337997]
[1737089692681,0.11051623,101470.0,101460.0,0.72337997]
[1737089693288,0.11051623,101470.0,101460.0,0.67517997]
[1737089693488,0.16041623,101470.0,101460.0,0.67517997]
[1737089693886,0.16041623,101470.0,101460.0,0.26927997]
[1737089694093,0.21161623,101470.0,101460.0,0.26927997]
[1737089695292,0.57241623,101470.0,101460.0,0.26927997]
[1737089695590,0.21161623,101470.0,101460.0,0.26927997]
[1737089696292,0.57241623,101470.0,101460.0,0.03427749]
[1737089696484,0.049288,101460.0,101450.0,0.5803444]
[1737089696684,0.11052123,101460.0,101450.0,0.5803444]
[1737089697085,0.11052123,101460.0,101450.0,0.28429148]
[1737089697486,0.11052123,101460.0,101450.0,0.23500248]
[1737089698693,0.11052123,101460.0,101450.0,0.26080093]
[1737089698997,0.11052123,101460.0,101450.0,0.7725127]
[1737089700095,0.11052123,101460.0,101450.0,0.02579845]
[1737089700281,0.17175446,101460.0,101440.0,1.16311642]
[1737089700486,0.11052623,101450.0,101440.0,1.22434965]
[1737089700788,0.11052623,101450.0,101440.0,1.18188253]
[1737089700988,0.11052623,101450.0,101440.0,0.80231642]
[1737089701385,0.11052623,101450.0,101440.0,1.2529875]
[1737089701795,0.11052623,101450.0,101440.0,1.26840058]
[1737089702093,0.11052623,101450.0,101440.0,0.85184203]
[1737089702288,0.11052623,101450.0,101440.0,0.78812355]
[1737089702994,0.11052623,101450.0,101440.0,0.84935678]
[1737089704295,0.11052623,101450.0,101440.0,0.78812355]
[1737089704600,0.11052623,101450.0,101440.0,0.77271047]
[1737089705692,0.11052623,101450.0,101440.0,0.8339437]
[1737089705888,0.11052623,101450.0,101440.0,0.84935702]
[1737089706995,0.11052623,101450.0,101440.0,0.78812379]
[1737089707198,0.11052623,101450.0,101440.0,0.84935702]
[1737089707498,0.11052623,101450.0,101440.0,0.78812379]
[1737089708590,0.11052623,101450.0,101440.0,0.84935702]
[1737089708791,0.11052623,101450.0,101440.0,0.78812379]
[1737089709188,0.11052623,101450.0,101440.0,1.5348734]
[1737089709992,0.11052623,101450.0,101440.0,1.1740734]
[1737089710195,0.11052623,101450.0,101440.0,0.72337671]
[1737089710496,0.11052623,101450.0,101440.0,1.08417671]
[1737089712400,0.11052623,101450.0,101440.0,0.78812379]
[1737089712996,0.11052623,101450.0,101440.0,1.08417671]
[1737089714095,0.11052623,101450.0,101440.0,0.78812379]
[1737089715598,0.11052623,101450.0,101440.0,0.73682379]
[1737089717406,0.11052623,101450.0,101440.0,0.50206592]
[1737089718502,0.11052623,101450.0,101440.0,0.73682379]
[1737089722309,0.11052623,101450.0,101440.0,1.24882903]
[1737089724214,0.11052623,101450.0,101440.0,1.483303]
[1737089724918,0.11052623,101450.0,101440.0,1.532601]
[1737089726209,0.11052623,101450.0,101440.0,1.29812703]
[1737089726910,0.11052623,101450.0,101440.0,1.24882903]
[1737089727213,0.15982623,101450.0,101440.0,1.14912903]
[1737089728118,0.15982623,101450.0,101440.0,1.38367636]
[1737089729321,0.15982623,101450.0,101440.0,0.63691325]
[1737089731115,0.20782623,101450.0,101440.0,0.63691325]
[1737089734521,0.20782623,101450.0,101440.0,0.27611325]
[1737089737022,0.20782623,101450.0,101440.0,0.57216617]
[1737089737720,0.62985946,101450.0,101440.0,0.57216617]
[1737089737920,0.62985946,101450.0,101440.0,0.27611325]
[1737089738122,0.62985946,101450.0,101440.0,0.26069993]
[1737089739417,0.56862623,101450.0,101440.0,0.26069993]
[1737089739819,0.62985946,101450.0,101440.0,0.0261526]
[1737089740019,0.049297,101440.0,101430.0,0.94380025]
[1737089740222,0.17176346,101440.0,101430.0,0.94380025]
[1737089740416,0.17176346,101440.0,101430.0,0.95921524]
[1737089740918,0.17176346,101440.0,101430.0,1.40997756]
[1737089742524,0.17176346,101440.0,101430.0,1.42997526]
[1737089743711,0.17176346,101440.0,101430.0,0.63076002]
[1737089746024,0.049297,101440.0,101430.0,0.63076002]
[1737089746325,0.17176346,101440.0,101430.0,0.63076002]
[1737089751029,0.17176346,101440.0,101430.0,0.39621269]
[1737089751821,0.11052723,101450.0,101430.0,0.86984592]
[1737089752025,0.36227866,101480.0,101460.0,0.049287]
[1737089752220,0.11199389,101480.0,101460.0,0.47132023]
[1737089752530,0.11199389,101480.0,101470.0,0.42203323]
[1737089752723,0.11199389,101480.0,101470.0,0.5104]
[1737089753125,0.11199389,101480.0,101470.0,0.74494733]
[1737089753428,0.06271189,101480.0,101470.0,0.74494733]
[1737089753634,0.12394512,101480.0,101470.0,0.74494733]
[1737089754027,0.12394512,101480.0,101470.0,0.5104]
[1737089754226,0.17322312,101480.0,101470.0,0.4124]
[1737089754936,0.17322312,101480.0,101470.0,0.64694733]
[1737089756032,0.17322312,101480.0,101470.0,0.66666508]
[1737089756634,0.17322312,101480.0,101470.0,0.43211775]